Workbook

Sheet KN
A1: MachN | B1: Qual | C1: Quality Name/Description | D1: Created | E1: KtOrd | F1: Customer Name | G1: RollKgmsKnt
A2: 16 | B2: 93111 | C2: RIB2x230/260/40C/Pl78.for dice | D2: 2024-10-01 | E2: 65946 | F2: DICE(US POLO) | G2: 206.7
A3: 16 | B3: 93111 | C3: RIB2x230/260/40C/Pl78.for dice | D3: 2024-10-02 | E3: 65946 | F3: DICE(US POLO) | G3: 188.25
A4: 16 | B4: 93111 | C4: RIB2x230/260/40C/Pl78.for dice | D4: 2024-10-03 | E4: 65946 | F4: DICE(US POLO) | G4: 155.2
A5: 16 | B5: 93111 | C5: RIB2x230/260/40C/Pl78.for dice | D5: 2024-10-03 | E5: 66017 | F5: DICE(CAIRO.LEVIES) | G5: 68.8
A6: 16 | B6: 93111 | C6: RIB2x230/260/40C/Pl78.for dice | D6: 2024-10-04 | E6: 65946 | F6: DICE(US POLO) | G6: 28.7
A7: 16 | B7: 93111 | C7: RIB2x230/260/40C/Pl78.for dice | D7: 2024-10-04 | E7: 66017 | F7: DICE(CAIRO.LEVIES) | G7: 149.8
A8: 16 | B8: 93111 | C8: RIB2x230/260/40C/Pl78.for dice | D8: 2024-10-04 | E8: 66024 | F8: DICE(DISNEY) | G8: 21.75
A9: 16 | B9: 93111 | C9: RIB2x230/260/40C/Pl78.for dice | D9: 2024-10-05 | E9: 65946 | F9: DICE(US POLO) | G9: 170.55
A10: 16 | B10: 93111 | C10: RIB2x230/260/40C/Pl78.for dice | D10: 2024-10-05 | E10: 66024 | F10: DICE(DISNEY) | G10: 32.8
A11: 16 | B11: 93111 | C11: RIB2x230/260/40C/Pl78.for dice | D11: 2024-10-06 | E11: 65946 | F11: DICE(US POLO) | G11: 193.5
A12: 16 | B12: 93111 | C12: RIB2x230/260/40C/Pl78.for dice | D12: 2024-10-07 | E12: 65946 | F12: DICE(US POLO) | G12: 146
A13: 16 | B13: 93111 | C13: RIB2x230/260/40C/Pl78.for dice | D13: 2024-10-08 | E13: 65946 | F13: DICE(US POLO) | G13: 189.75
A14: 16 | B14: 93111 | C14: RIB2x230/260/40C/Pl78.for dice | D14: 2024-10-09 | E14: 65946 | F14: DICE(US POLO) | G14: 212.4
A15: 16 | B15: 93111 | C15: RIB2x230/260/40C/Pl78.for dice | D15: 2024-10-10 | E15: 65946 | F15: DICE(US POLO) | G15: 110.3
A16: 16 | B16: 93111 | C16: RIB2x230/260/40C/Pl78.for dice | D16: 2024-10-20 | E16: 66172 | F16: DICE(RETAIL) | G16: 37.2
A17: 16 | B17: 93111 | C17: RIB2x230/260/40C/Pl78.for dice | D17: 2024-10-21 | E17: 66172 | F17: DICE(RETAIL) | G17: 151.3
A18: 16 | B18: 93111 | C18: RIB2x230/260/40C/Pl78.for dice | D18: 2024-10-22 | E18: 66172 | F18: DICE(RETAIL) | G18: 127.3
A19: 16 | B19: 93111 | C19: RIB2x230/260/40C/Pl78.for dice | D19: 2024-10-23 | E19: 66172 | F19: DICE(RETAIL) | G19: 169.85
A20: 16 | B20: 93111 | C20: RIB2x230/260/40C/Pl78.for dice | D20: 2024-10-24 | E20: 66172 | F20: DICE(RETAIL) | G20: 130.35
A21: 16 | B21: 93111 | C21: RIB2x230/260/40C/Pl78.for dice | D21: 2024-10-25 | E21: 66172 | F21: DICE(RETAIL) | G21: 92.15
A22: 16 | B22: 93382 | C22: RIB2x230/160/40C/Pl44.for dice | D22: 2024-10-26 | E22: 66256 | F22: DICE(RETAIL) | G22: 34.95
A23: 16 | B23: 93382 | C23: RIB2x230/160/40C/Pl44.for dice | D23: 2024-10-27 | E23: 66256 | F23: DICE(RETAIL) | G23: 80.65
A24: 16 | B24: 93382 | C24: RIB2x230/160/40C/Pl44.for dice | D24: 2024-10-28 | E24: 66256 | F24: DICE(RETAIL) | G24: 113.55
A25: 16 | B25: 93382 | C25: RIB2x230/160/40C/Pl44.for dice | D25: 2024-10-29 | E25: 66256 | F25: DICE(RETAIL) | G25: 147.2
A26: 16 | B26: 93382 | C26: RIB2x230/160/40C/Pl44.for dice | D26: 2024-10-30 | E26: 66256 | F26: DICE(RETAIL) | G26: 62.95
A27: 16 | B27: 94532 | C27: RIB2x2 30/2 cottonly70.for dice | D27: 2024-10-10 | E27: 66093 | F27: DICE(ITALIANO) | G27: 79.7
A28: 16 | B28: 94532 | C28: RIB2x2 30/2 cottonly70.for dice | D28: 2024-10-11 | E28: 66093 | F28: DICE(ITALIANO) | G28: 122.35
A29: 16 | B29: 94532 | C29: RIB2x2 30/2 cottonly70.for dice | D29: 2024-10-25 | E29: 66231 | F29: DICE(RETAIL) | G29: 80.65
A30: 16 | B30: 94532 | C30: RIB2x2 30/2 cottonly70.for dice | D30: 2024-10-26 | E30: 66231 | F30: DICE(RETAIL) | G30: 29
A31: 16 | B31: 94532 | C31: RIB2x2 30/2 cottonly70.for dice | D31: 2024-10-30 | E31: 66296 | F31: DICE(JEERY) | G31: 49.7
A32: 16 | B32: 94532 | C32: RIB2x2 30/2 cottonly70.for dice | D32: 2024-10-31 | E32: 66296 | F32: DICE(JEERY) | G32: 169.1
G33: =SUM(G2:G32) -> 3552.45
A34: 23 | B34: 93111 | C34: RIB2x230/260/40C/Pl78.for dice | D34: 2024-10-01 | E34: 65946 | F34: DICE(US POLO) | G34: 200.15
A35: 23 | B35: 93111 | C35: RIB2x230/260/40C/Pl78.for dice | D35: 2024-10-02 | E35: 65946 | F35: DICE(US POLO) | G35: 155.5
A36: 23 | B36: 93111 | C36: RIB2x230/260/40C/Pl78.for dice | D36: 2024-10-03 | E36: 65946 | F36: DICE(US POLO) | G36: 92.45
A37: 23 | B37: 93111 | C37: RIB2x230/260/40C/Pl78.for dice | D37: 2024-10-03 | E37: 66017 | F37: DICE(CAIRO.LEVIES) | G37: 25.8
A38: 23 | B38: 93111 | C38: RIB2x230/260/40C/Pl78.for dice | D38: 2024-10-04 | E38: 66017 | F38: DICE(CAIRO.LEVIES) | G38: 43
A39: 23 | B39: 93111 | C39: RIB2x230/260/40C/Pl78.for dice | D39: 2024-10-04 | E39: 66024 | F39: DICE(DISNEY) | G39: 40.05
A40: 23 | B40: 93111 | C40: RIB2x230/260/40C/Pl78.for dice | D40: 2024-10-05 | E40: 65946 | F40: DICE(US POLO) | G40: 97.5
A41: 23 | B41: 93111 | C41: RIB2x230/260/40C/Pl78.for dice | D41: 2024-10-05 | E41: 66024 | F41: DICE(DISNEY) | G41: 40.95
A42: 23 | B42: 93111 | C42: RIB2x230/260/40C/Pl78.for dice | D42: 2024-10-06 | E42: 65946 | F42: DICE(US POLO) | G42: 74.9
A43: 23 | B43: 93111 | C43: RIB2x230/260/40C/Pl78.for dice | D43: 2024-10-07 | E43: 65946 | F43: DICE(US POLO) | G43: 73.65
A44: 23 | B44: 93326 | C44: Single 40/1 Cotton.L22 gg28 30" | D44: 2024-10-20 | E44: 66135 | F44: DICE(RETAIL) | G44: 23
A45: 23 | B45: 93382 | C45: RIB2x230/160/40C/Pl44.for dice | D45: 2024-10-28 | E45: 66256 | F45: DICE(RETAIL) | G45: 83.8
A46: 23 | B46: 93382 | C46: RIB2x230/160/40C/Pl44.for dice | D46: 2024-10-29 | E46: 66256 | F46: DICE(RETAIL) | G46: 124
A47: 23 | B47: 93382 | C47: RIB2x230/160/40C/Pl44.for dice | D47: 2024-10-30 | E47: 66256 | F47: DICE(RETAIL) | G47: 80.75
A48: 23 | B48: 93382 | C48: RIB2x230/160/40C/Pl44.for dice | D48: 2024-10-31 | E48: 66256 | F48: DICE(RETAIL) | G48: 107.35
G49: =SUM(G34:G48) -> 1262.85
A50: 24 | B50: 93111 | C50: RIB2x230/260/40C/Pl78.for dice | D50: 2024-10-01 | E50: 65946 | F50: DICE(US POLO) | G50: 201.25
A51: 24 | B51: 93111 | C51: RIB2x230/260/40C/Pl78.for dice | D51: 2024-10-02 | E51: 65946 | F51: DICE(US POLO) | G51: 199
A52: 24 | B52: 93111 | C52: RIB2x230/260/40C/Pl78.for dice | D52: 2024-10-03 | E52: 65946 | F52: DICE(US POLO) | G52: 57.95
A53: 24 | B53: 93111 | C53: RIB2x230/260/40C/Pl78.for dice | D53: 2024-10-03 | E53: 66016 | F53: DICE(INFUSE) | G53: 44.9
A54: 24 | B54: 93111 | C54: RIB2x230/260/40C/Pl78.for dice | D54: 2024-10-03 | E54: 66017 | F54: DICE(CAIRO.LEVIES) | G54: 71.65
A55: 24 | B55: 93111 | C55: RIB2x230/260/40C/Pl78.for dice | D55: 2024-10-04 | E55: 66017 | F55: DICE(CAIRO.LEVIES) | G55: 141.15
A56: 24 | B56: 93111 | C56: RIB2x230/260/40C/Pl78.for dice | D56: 2024-10-04 | E56: 66024 | F56: DICE(DISNEY) | G56: 47.45
A57: 24 | B57: 93111 | C57: RIB2x230/260/40C/Pl78.for dice | D57: 2024-10-05 | E57: 65946 | F57: DICE(US POLO) | G57: 158.2
A58: 24 | B58: 93111 | C58: RIB2x230/260/40C/Pl78.for dice | D58: 2024-10-06 | E58: 65946 | F58: DICE(US POLO) | G58: 113.9
A59: 24 | B59: 93111 | C59: RIB2x230/260/40C/Pl78.for dice | D59: 2024-10-07 | E59: 65946 | F59: DICE(US POLO) | G59: 186.5
A60: 24 | B60: 93111 | C60: RIB2x230/260/40C/Pl78.for dice | D60: 2024-10-08 | E60: 65946 | F60: DICE(US POLO) | G60: 83.95
A61: 24 | B61: 93111 | C61: RIB2x230/260/40C/Pl78.for dice | D61: 2024-10-13 | E61: 66106 | F61: DICE(DISNEY) | G61: 68.8
A62: 24 | B62: 93111 | C62: RIB2x230/260/40C/Pl78.for dice | D62: 2024-10-14 | E62: 66106 | F62: DICE(DISNEY) | G62: 12.5
A63: 24 | B63: 93382 | C63: RIB2x230/160/40C/Pl44.for dice | D63: 2024-10-26 | E63: 66256 | F63: DICE(RETAIL) | G63: 50.45
A64: 24 | B64: 93382 | C64: RIB2x230/160/40C/Pl44.for dice | D64: 2024-10-27 | E64: 66256 | F64: DICE(RETAIL) | G64: 104.35
A65: 24 | B65: 93382 | C65: RIB2x230/160/40C/Pl44.for dice | D65: 2024-10-28 | E65: 66256 | F65: DICE(RETAIL) | G65: 117.85
A66: 24 | B66: 93382 | C66: RIB2x230/160/40C/Pl44.for dice | D66: 2024-10-29 | E66: 66256 | F66: DICE(RETAIL) | G66: 159.74
A67: 24 | B67: 93382 | C67: RIB2x230/160/40C/Pl44.for dice | D67: 2024-10-30 | E67: 66256 | F67: DICE(RETAIL) | G67: 153.59
A68: 24 | B68: 93382 | C68: RIB2x230/160/40C/Pl44.for dice | D68: 2024-10-31 | E68: 66256 | F68: DICE(RETAIL) | G68: 120.19
G69: =SUM(G50:G68) -> 2093.37
A70: 38 | B70: 93326 | C70: Single 40/1 Cotton.L22 gg28 30" | D70: 2024-10-02 | E70: 65912 | F70: DICE(RETAIL) | G70: 65.7
A71: 38 | B71: 93326 | C71: Single 40/1 Cotton.L22 gg28 30" | D71: 2024-10-03 | E71: 65912 | F71: DICE(RETAIL) | G71: 67.6
A72: 38 | B72: 93326 | C72: Single 40/1 Cotton.L22 gg28 30" | D72: 2024-10-04 | E72: 65912 | F72: DICE(RETAIL) | G72: 112.1
A73: 38 | B73: 93326 | C73: Single 40/1 Cotton.L22 gg28 30" | D73: 2024-10-05 | E73: 65912 | F73: DICE(RETAIL) | G73: 81.8
A74: 38 | B74: 93326 | C74: Single 40/1 Cotton.L22 gg28 30" | D74: 2024-10-06 | E74: 65912 | F74: DICE(RETAIL) | G74: 48.8
A75: 38 | B75: 93326 | C75: Single 40/1 Cotton.L22 gg28 30" | D75: 2024-10-07 | E75: 65912 | F75: DICE(RETAIL) | G75: 121.7
A76: 38 | B76: 93326 | C76: Single 40/1 Cotton.L22 gg28 30" | D76: 2024-10-08 | E76: 65912 | F76: DICE(RETAIL) | G76: 136.7
A77: 38 | B77: 93326 | C77: Single 40/1 Cotton.L22 gg28 30" | D77: 2024-10-09 | E77: 65912 | F77: DICE(RETAIL) | G77: 114.8
A78: 38 | B78: 93326 | C78: Single 40/1 Cotton.L22 gg28 30" | D78: 2024-10-10 | E78: 65912 | F78: DICE(RETAIL) | G78: 126.3
A79: 38 | B79: 93326 | C79: Single 40/1 Cotton.L22 gg28 30" | D79: 2024-10-11 | E79: 65912 | F79: DICE(RETAIL) | G79: 96.8
A80: 38 | B80: 93326 | C80: Single 40/1 Cotton.L22 gg28 30" | D80: 2024-10-12 | E80: 65912 | F80: DICE(RETAIL) | G80: 131.2
A81: 38 | B81: 93326 | C81: Single 40/1 Cotton.L22 gg28 30" | D81: 2024-10-13 | E81: 65912 | F81: DICE(RETAIL) | G81: 141.6
A82: 38 | B82: 93326 | C82: Single 40/1 Cotton.L22 gg28 30" | D82: 2024-10-14 | E82: 65912 | F82: DICE(RETAIL) | G82: 83.4
A83: 38 | B83: 93326 | C83: Single 40/1 Cotton.L22 gg28 30" | D83: 2024-10-14 | E83: 66078 | F83: DICE(RETAIL) | G83: 29.4
A84: 38 | B84: 93326 | C84: Single 40/1 Cotton.L22 gg28 30" | D84: 2024-10-15 | E84: 66078 | F84: DICE(RETAIL) | G84: 103.2
A85: 38 | B85: 93326 | C85: Single 40/1 Cotton.L22 gg28 30" | D85: 2024-10-16 | E85: 66078 | F85: DICE(RETAIL) | G85: 43.5
A86: 38 | B86: 93326 | C86: Single 40/1 Cotton.L22 gg28 30" | D86: 2024-10-16 | E86: 66128 | F86: DICE(RETAIL) | G86: 20.7
A87: 38 | B87: 93326 | C87: Single 40/1 Cotton.L22 gg28 30" | D87: 2024-10-17 | E87: 66128 | F87: DICE(RETAIL) | G87: 146.4
A88: 38 | B88: 93326 | C88: Single 40/1 Cotton.L22 gg28 30" | D88: 2024-10-18 | E88: 66128 | F88: DICE(RETAIL) | G88: 109.2
A89: 38 | B89: 93326 | C89: Single 40/1 Cotton.L22 gg28 30" | D89: 2024-10-19 | E89: 66128 | F89: DICE(RETAIL) | G89: 145.9
A90: 38 | B90: 93326 | C90: Single 40/1 Cotton.L22 gg28 30" | D90: 2024-10-20 | E90: 66128 | F90: DICE(RETAIL) | G90: 118.9
A91: 38 | B91: 93326 | C91: Single 40/1 Cotton.L22 gg28 30" | D91: 2024-10-21 | E91: 66128 | F91: DICE(RETAIL) | G91: 137.1
A92: 38 | B92: 93326 | C92: Single 40/1 Cotton.L22 gg28 30" | D92: 2024-10-22 | E92: 66128 | F92: DICE(RETAIL) | G92: 111.7
A93: 38 | B93: 93326 | C93: Single 40/1 Cotton.L22 gg28 30" | D93: 2024-10-23 | E93: 66128 | F93: DICE(RETAIL) | G93: 104.9
A94: 38 | B94: 93326 | C94: Single 40/1 Cotton.L22 gg28 30" | D94: 2024-10-24 | E94: 66128 | F94: DICE(RETAIL) | G94: 17.5
A95: 38 | B95: 93326 | C95: Single 40/1 Cotton.L22 gg28 30" | D95: 2024-10-24 | E95: 66193 | F95: DICE(RETAIL) | G95: 112.2
A96: 38 | B96: 93326 | C96: Single 40/1 Cotton.L22 gg28 30" | D96: 2024-10-25 | E96: 66193 | F96: DICE(RETAIL) | G96: 56.7
A97: 38 | B97: 93326 | C97: Single 40/1 Cotton.L22 gg28 30" | D97: 2024-10-26 | E97: 66193 | F97: DICE(RETAIL) | G97: 71.4
A98: 38 | B98: 93326 | C98: Single 40/1 Cotton.L22 gg28 30" | D98: 2024-10-27 | E98: 66193 | F98: DICE(RETAIL) | G98: 66.3
A99: 38 | B99: 93326 | C99: Single 40/1 Cotton.L22 gg28 30" | D99: 2024-10-28 | E99: 66193 | F99: DICE(RETAIL) | G99: 89.7
A100: 38 | B100: 93326 | C100: Single 40/1 Cotton.L22 gg28 30" | D100: 2024-10-29 | E100: 66193 | F100: DICE(RETAIL) | G100: 66.8
A101: 38 | B101: 93326 | C101: Single 40/1 Cotton.L22 gg28 30" | D101: 2024-10-31 | E101: 66193 | F101: DICE(RETAIL) | G101: 98.7
A102: 38 | B102: 93328 | C102: Single 40/1 Cotton.L22 gg24 30" | D102: 2024-10-22 | E102: 66138 | F102: DICE(RETAIL) | G102: 20
A103: 38 | B103: 93338 | C103: Single 40/1 Cotton.L22 gg28.AOP | D103: 2024-10-01 | E103: 65912 | F103: DICE(RETAIL) | G103: 125.2
G104: =SUM(G70:G103) -> 3123.9
A105: 39 | B105: 93326 | C105: Single 40/1 Cotton.L22 gg28 30" | D105: 2024-10-02 | E105: 65913 | F105: DICE(RETAIL) | G105: 67
A106: 39 | B106: 93326 | C106: Single 40/1 Cotton.L22 gg28 30" | D106: 2024-10-03 | E106: 65913 | F106: DICE(RETAIL) | G106: 61.5
A107: 39 | B107: 93326 | C107: Single 40/1 Cotton.L22 gg28 30" | D107: 2024-10-04 | E107: 65913 | F107: DICE(RETAIL) | G107: 121.1
A108: 39 | B108: 93326 | C108: Single 40/1 Cotton.L22 gg28 30" | D108: 2024-10-05 | E108: 65913 | F108: DICE(RETAIL) | G108: 49
A109: 39 | B109: 93326 | C109: Single 40/1 Cotton.L22 gg28 30" | D109: 2024-10-06 | E109: 65913 | F109: DICE(RETAIL) | G109: 73.1
A110: 39 | B110: 93326 | C110: Single 40/1 Cotton.L22 gg28 30" | D110: 2024-10-07 | E110: 65913 | F110: DICE(RETAIL) | G110: 127.3
A111: 39 | B111: 93326 | C111: Single 40/1 Cotton.L22 gg28 30" | D111: 2024-10-08 | E111: 65913 | F111: DICE(RETAIL) | G111: 160.8
A112: 39 | B112: 93326 | C112: Single 40/1 Cotton.L22 gg28 30" | D112: 2024-10-09 | E112: 65913 | F112: DICE(RETAIL) | G112: 140.9
A113: 39 | B113: 93326 | C113: Single 40/1 Cotton.L22 gg28 30" | D113: 2024-10-10 | E113: 65913 | F113: DICE(RETAIL) | G113: 114.8
A114: 39 | B114: 93326 | C114: Single 40/1 Cotton.L22 gg28 30" | D114: 2024-10-12 | E114: 65913 | F114: DICE(RETAIL) | G114: 114.5
A115: 39 | B115: 93326 | C115: Single 40/1 Cotton.L22 gg28 30" | D115: 2024-10-13 | E115: 65913 | F115: DICE(RETAIL) | G115: 125.7
A116: 39 | B116: 93326 | C116: Single 40/1 Cotton.L22 gg28 30" | D116: 2024-10-14 | E116: 65913 | F116: DICE(RETAIL) | G116: 62.9
A117: 39 | B117: 93326 | C117: Single 40/1 Cotton.L22 gg28 30" | D117: 2024-10-14 | E117: 66079 | F117: DICE(RETAIL) | G117: 85.2
A118: 39 | B118: 93326 | C118: Single 40/1 Cotton.L22 gg28 30" | D118: 2024-10-15 | E118: 66079 | F118: DICE(RETAIL) | G118: 122.7
A119: 39 | B119: 93326 | C119: Single 40/1 Cotton.L22 gg28 30" | D119: 2024-10-16 | E119: 66079 | F119: DICE(RETAIL) | G119: 40.8
A120: 39 | B120: 93326 | C120: Single 40/1 Cotton.L22 gg28 30" | D120: 2024-10-16 | E120: 66129 | F120: DICE(RETAIL) | G120: 89.9
A121: 39 | B121: 93326 | C121: Single 40/1 Cotton.L22 gg28 30" | D121: 2024-10-17 | E121: 66129 | F121: DICE(RETAIL) | G121: 123.3
A122: 39 | B122: 93326 | C122: Single 40/1 Cotton.L22 gg28 30" | D122: 2024-10-18 | E122: 66129 | F122: DICE(RETAIL) | G122: 151.8
A123: 39 | B123: 93326 | C123: Single 40/1 Cotton.L22 gg28 30" | D123: 2024-10-19 | E123: 66129 | F123: DICE(RETAIL) | G123: 128.1
A124: 39 | B124: 93326 | C124: Single 40/1 Cotton.L22 gg28 30" | D124: 2024-10-20 | E124: 66129 | F124: DICE(RETAIL) | G124: 129.6
A125: 39 | B125: 93326 | C125: Single 40/1 Cotton.L22 gg28 30" | D125: 2024-10-21 | E125: 66129 | F125: DICE(RETAIL) | G125: 152.2
A126: 39 | B126: 93326 | C126: Single 40/1 Cotton.L22 gg28 30" | D126: 2024-10-22 | E126: 66129 | F126: DICE(RETAIL) | G126: 147
A127: 39 | B127: 93326 | C127: Single 40/1 Cotton.L22 gg28 30" | D127: 2024-10-23 | E127: 66129 | F127: DICE(RETAIL) | G127: 55.3
A128: 39 | B128: 93326 | C128: Single 40/1 Cotton.L22 gg28 30" | D128: 2024-10-23 | E128: 66194 | F128: DICE(RETAIL) | G128: 57.5
A129: 39 | B129: 93326 | C129: Single 40/1 Cotton.L22 gg28 30" | D129: 2024-10-24 | E129: 66194 | F129: DICE(RETAIL) | G129: 121.4
A130: 39 | B130: 93326 | C130: Single 40/1 Cotton.L22 gg28 30" | D130: 2024-10-25 | E130: 66194 | F130: DICE(RETAIL) | G130: 69.9
A131: 39 | B131: 93326 | C131: Single 40/1 Cotton.L22 gg28 30" | D131: 2024-10-26 | E131: 66194 | F131: DICE(RETAIL) | G131: 136.7
A132: 39 | B132: 93326 | C132: Single 40/1 Cotton.L22 gg28 30" | D132: 2024-10-27 | E132: 66194 | F132: DICE(RETAIL) | G132: 72.7
A133: 39 | B133: 93326 | C133: Single 40/1 Cotton.L22 gg28 30" | D133: 2024-10-28 | E133: 66194 | F133: DICE(RETAIL) | G133: 129.3
A134: 39 | B134: 93326 | C134: Single 40/1 Cotton.L22 gg28 30" | D134: 2024-10-29 | E134: 66194 | F134: DICE(RETAIL) | G134: 123.7
A135: 39 | B135: 93326 | C135: Single 40/1 Cotton.L22 gg28 30" | D135: 2024-10-30 | E135: 66194 | F135: DICE(RETAIL) | G135: 107.9
A136: 39 | B136: 93326 | C136: Single 40/1 Cotton.L22 gg28 30" | D136: 2024-10-31 | E136: 66194 | F136: DICE(RETAIL) | G136: 133.4
A137: 39 | B137: 93338 | C137: Single 40/1 Cotton.L22 gg28.AOP | D137: 2024-10-01 | E137: 65913 | F137: DICE(RETAIL) | G137: 156.5
A138: 39 | B138: 93338 | C138: Single 40/1 Cotton.L22 gg28.AOP | D138: 2024-10-02 | E138: 65913 | F138: DICE(RETAIL) | G138: 40.6
G139: =SUM(G105:G138) -> 3594.1
A140: 40 | B140: 93326 | C140: Single 40/1 Cotton.L22 gg28 30" | D140: 2024-10-02 | E140: 65914 | F140: DICE(RETAIL) | G140: 99.7
A141: 40 | B141: 93326 | C141: Single 40/1 Cotton.L22 gg28 30" | D141: 2024-10-03 | E141: 65914 | F141: DICE(RETAIL) | G141: 153.7
A142: 40 | B142: 93326 | C142: Single 40/1 Cotton.L22 gg28 30" | D142: 2024-10-04 | E142: 65914 | F142: DICE(RETAIL) | G142: 169.1
A143: 40 | B143: 93326 | C143: Single 40/1 Cotton.L22 gg28 30" | D143: 2024-10-05 | E143: 65914 | F143: DICE(RETAIL) | G143: 175.72
A144: 40 | B144: 93326 | C144: Single 40/1 Cotton.L22 gg28 30" | D144: 2024-10-06 | E144: 65914 | F144: DICE(RETAIL) | G144: 95.4
A145: 40 | B145: 93326 | C145: Single 40/1 Cotton.L22 gg28 30" | D145: 2024-10-07 | E145: 65914 | F145: DICE(RETAIL) | G145: 163.8
A146: 40 | B146: 93326 | C146: Single 40/1 Cotton.L22 gg28 30" | D146: 2024-10-08 | E146: 65914 | F146: DICE(RETAIL) | G146: 184.7
A147: 40 | B147: 93326 | C147: Single 40/1 Cotton.L22 gg28 30" | D147: 2024-10-09 | E147: 65914 | F147: DICE(RETAIL) | G147: 141.5
A148: 40 | B148: 93326 | C148: Single 40/1 Cotton.L22 gg28 30" | D148: 2024-10-10 | E148: 65914 | F148: DICE(RETAIL) | G148: 153.5
A149: 40 | B149: 93326 | C149: Single 40/1 Cotton.L22 gg28 30" | D149: 2024-10-11 | E149: 65914 | F149: DICE(RETAIL) | G149: 188.8
A150: 40 | B150: 93326 | C150: Single 40/1 Cotton.L22 gg28 30" | D150: 2024-10-12 | E150: 65914 | F150: DICE(RETAIL) | G150: 184.8
A151: 40 | B151: 93326 | C151: Single 40/1 Cotton.L22 gg28 30" | D151: 2024-10-13 | E151: 65914 | F151: DICE(RETAIL) | G151: 164.1
A152: 40 | B152: 93326 | C152: Single 40/1 Cotton.L22 gg28 30" | D152: 2024-10-14 | E152: 65914 | F152: DICE(RETAIL) | G152: 9.9
A153: 40 | B153: 93326 | C153: Single 40/1 Cotton.L22 gg28 30" | D153: 2024-10-14 | E153: 66080 | F153: DICE(RETAIL) | G153: 131.9
A154: 40 | B154: 93326 | C154: Single 40/1 Cotton.L22 gg28 30" | D154: 2024-10-15 | E154: 66080 | F154: DICE(RETAIL) | G154: 123.7
A155: 40 | B155: 93326 | C155: Single 40/1 Cotton.L22 gg28 30" | D155: 2024-10-16 | E155: 66080 | F155: DICE(RETAIL) | G155: 74
A156: 40 | B156: 93326 | C156: Single 40/1 Cotton.L22 gg28 30" | D156: 2024-10-16 | E156: 66130 | F156: DICE(RETAIL) | G156: 72.4
A157: 40 | B157: 93326 | C157: Single 40/1 Cotton.L22 gg28 30" | D157: 2024-10-17 | E157: 66130 | F157: DICE(RETAIL) | G157: 157.5
A158: 40 | B158: 93326 | C158: Single 40/1 Cotton.L22 gg28 30" | D158: 2024-10-18 | E158: 66130 | F158: DICE(RETAIL) | G158: 193.2
A159: 40 | B159: 93326 | C159: Single 40/1 Cotton.L22 gg28 30" | D159: 2024-10-19 | E159: 66130 | F159: DICE(RETAIL) | G159: 114.3
A160: 40 | B160: 93326 | C160: Single 40/1 Cotton.L22 gg28 30" | D160: 2024-10-20 | E160: 66130 | F160: DICE(RETAIL) | G160: 158.7
A161: 40 | B161: 93326 | C161: Single 40/1 Cotton.L22 gg28 30" | D161: 2024-10-21 | E161: 66130 | F161: DICE(RETAIL) | G161: 195.2
A162: 40 | B162: 93326 | C162: Single 40/1 Cotton.L22 gg28 30" | D162: 2024-10-22 | E162: 66130 | F162: DICE(RETAIL) | G162: 206.6
A163: 40 | B163: 93326 | C163: Single 40/1 Cotton.L22 gg28 30" | D163: 2024-10-23 | E163: 66130 | F163: DICE(RETAIL) | G163: 47.2
A164: 40 | B164: 93326 | C164: Single 40/1 Cotton.L22 gg28 30" | D164: 2024-10-23 | E164: 66195 | F164: DICE(RETAIL) | G164: 111.5
A165: 40 | B165: 93326 | C165: Single 40/1 Cotton.L22 gg28 30" | D165: 2024-10-24 | E165: 66195 | F165: DICE(RETAIL) | G165: 201
A166: 40 | B166: 93326 | C166: Single 40/1 Cotton.L22 gg28 30" | D166: 2024-10-25 | E166: 66195 | F166: DICE(RETAIL) | G166: 217.7
A167: 40 | B167: 93326 | C167: Single 40/1 Cotton.L22 gg28 30" | D167: 2024-10-26 | E167: 66195 | F167: DICE(RETAIL) | G167: 187.9
A168: 40 | B168: 93326 | C168: Single 40/1 Cotton.L22 gg28 30" | D168: 2024-10-27 | E168: 66195 | F168: DICE(RETAIL) | G168: 94.6
A169: 40 | B169: 93326 | C169: Single 40/1 Cotton.L22 gg28 30" | D169: 2024-10-28 | E169: 66193 | F169: DICE(RETAIL) | G169: 18.4
A170: 40 | B170: 93326 | C170: Single 40/1 Cotton.L22 gg28 30" | D170: 2024-10-28 | E170: 66195 | F170: DICE(RETAIL) | G170: 205.2
A171: 40 | B171: 93326 | C171: Single 40/1 Cotton.L22 gg28 30" | D171: 2024-10-29 | E171: 66195 | F171: DICE(RETAIL) | G171: 167.8
A172: 40 | B172: 93326 | C172: Single 40/1 Cotton.L22 gg28 30" | D172: 2024-10-30 | E172: 66195 | F172: DICE(RETAIL) | G172: 181.3
A173: 40 | B173: 93326 | C173: Single 40/1 Cotton.L22 gg28 30" | D173: 2024-10-31 | E173: 66195 | F173: DICE(RETAIL) | G173: 168.2
A174: 40 | B174: 93338 | C174: Single 40/1 Cotton.L22 gg28.AOP | D174: 2024-10-01 | E174: 65914 | F174: DICE(RETAIL) | G174: 162.1
A175: 40 | B175: 93338 | C175: Single 40/1 Cotton.L22 gg28.AOP | D175: 2024-10-02 | E175: 65914 | F175: DICE(RETAIL) | G175: 54.2
G176: =SUM(G140:G175) -> 5129.32
A177: 41 | B177: 93326 | C177: Single 40/1 Cotton.L22 gg28 30" | D177: 2024-10-05 | E177: 65894 | F177: DICE(RETAIL) | G177: 23.3
A178: 41 | B178: 93326 | C178: Single 40/1 Cotton.L22 gg28 30" | D178: 2024-10-09 | E178: 65914 | F178: DICE(RETAIL) | G178: 21.3
A179: 41 | B179: 95577 | C179: Fleece30/1 50/50 ly44.30inch | D179: 2024-10-01 | E179: 65909 | F179: DICE(RETAIL) | G179: 22.3
A180: 41 | B180: 95577 | C180: Fleece30/1 50/50 ly44.30inch | D180: 2024-10-01 | E180: 65976 | F180: DICE(RETAIL) | G180: 161.1
A181: 41 | B181: 95577 | C181: Fleece30/1 50/50 ly44.30inch | D181: 2024-10-02 | E181: 65909 | F181: DICE(RETAIL) | G181: 79.7
A182: 41 | B182: 95577 | C182: Fleece30/1 50/50 ly44.30inch | D182: 2024-10-02 | E182: 65976 | F182: DICE(RETAIL) | G182: 133.8
A183: 41 | B183: 95577 | C183: Fleece30/1 50/50 ly44.30inch | D183: 2024-10-03 | E183: 65909 | F183: DICE(RETAIL) | G183: 31.1
A184: 41 | B184: 95577 | C184: Fleece30/1 50/50 ly44.30inch | D184: 2024-10-03 | E184: 65976 | F184: DICE(RETAIL) | G184: 175.3
A185: 41 | B185: 95577 | C185: Fleece30/1 50/50 ly44.30inch | D185: 2024-10-04 | E185: 65976 | F185: DICE(RETAIL) | G185: 202
A186: 41 | B186: 95577 | C186: Fleece30/1 50/50 ly44.30inch | D186: 2024-10-05 | E186: 65976 | F186: DICE(RETAIL) | G186: 194.8
A187: 41 | B187: 95577 | C187: Fleece30/1 50/50 ly44.30inch | D187: 2024-10-06 | E187: 65976 | F187: DICE(RETAIL) | G187: 108.6
A188: 41 | B188: 95577 | C188: Fleece30/1 50/50 ly44.30inch | D188: 2024-10-07 | E188: 65976 | F188: DICE(RETAIL) | G188: 201.8
A189: 41 | B189: 95577 | C189: Fleece30/1 50/50 ly44.30inch | D189: 2024-10-08 | E189: 65976 | F189: DICE(RETAIL) | G189: 224.6
A190: 41 | B190: 95577 | C190: Fleece30/1 50/50 ly44.30inch | D190: 2024-10-09 | E190: 65976 | F190: DICE(RETAIL) | G190: 194.3
A191: 41 | B191: 95577 | C191: Fleece30/1 50/50 ly44.30inch | D191: 2024-10-10 | E191: 65976 | F191: DICE(RETAIL) | G191: 184.6
A192: 41 | B192: 95577 | C192: Fleece30/1 50/50 ly44.30inch | D192: 2024-10-11 | E192: 65976 | F192: DICE(RETAIL) | G192: 205.2
A193: 41 | B193: 95577 | C193: Fleece30/1 50/50 ly44.30inch | D193: 2024-10-12 | E193: 65976 | F193: DICE(RETAIL) | G193: 217.2
A194: 41 | B194: 95577 | C194: Fleece30/1 50/50 ly44.30inch | D194: 2024-10-13 | E194: 65976 | F194: DICE(RETAIL) | G194: 216.9
A195: 41 | B195: 95577 | C195: Fleece30/1 50/50 ly44.30inch | D195: 2024-10-14 | E195: 65976 | F195: DICE(RETAIL) | G195: 194.8
A196: 41 | B196: 95577 | C196: Fleece30/1 50/50 ly44.30inch | D196: 2024-10-15 | E196: 65976 | F196: DICE(RETAIL) | G196: 199
A197: 41 | B197: 95577 | C197: Fleece30/1 50/50 ly44.30inch | D197: 2024-10-16 | E197: 65976 | F197: DICE(RETAIL) | G197: 215.1
A198: 41 | B198: 95577 | C198: Fleece30/1 50/50 ly44.30inch | D198: 2024-10-17 | E198: 65976 | F198: DICE(RETAIL) | G198: 189.1
A199: 41 | B199: 95577 | C199: Fleece30/1 50/50 ly44.30inch | D199: 2024-10-18 | E199: 65976 | F199: DICE(RETAIL) | G199: 150.9
A200: 41 | B200: 95678 | C200: Fleece30/1 60/40 ly44.30inch | D200: 2024-10-18 | E200: 66169 | F200: DICE(RETAIL) | G200: 92.1
... 2230 more rows

Sheet MM
A1: MachN | B1: 1 | C1: 2 | D1: 3 | E1: 4 | F1: 5 | G1: 6 | H1: 7 | I1: 8 | J1: 9 | K1: 10 | L1: 11 | M1: 12 | N1: 13 | O1: 14 | P1: 15 | Q1: 16 | R1: 17 | S1: 18 | T1: 19 | U1: 20 | V1: 21 | W1: 22 | X1: 23 | Y1: 24 | Z1: 25 | AA1: 26 | AB1: 27 | AC1: 28 | AD1: 29 | AE1: 30 | AF1: 31
A2: 16 | B2: 206.7 | C2: 188.25 | D2: 155.2-68.8 | E2: 28.7-149.8-21.75 | F2: 170.55-32.8 | G2: 193.5 | H2: 146 | I2: 189.75 | J2: 212.4 | K2: 110.3-79.7 | L2: 122.35 | U2: 37.2 | V2: 151.3 | W2: 127.3 | X2: 169.85 | Y2: 130.35 | Z2: 92.15-80.65 | AA2: 34.95-29 | AB2: 80.65 | AC2: 113.55 | AD2: 147.2 | AE2: 62.95-49.7 | AF2: 169.1
A3: 23 | B3: 200.15 | C3: 155.5 | D3: 92.45-25.8 | E3: 43-40.05 | F3: 97.5-40.95 | G3: 74.9 | H3: 73.65 | U3: 23 | AC3: 83.8 | AD3: 124 | AE3: 80.75 | AF3: 107.35
A4: 24 | B4: 201.25 | C4: 199 | D4: 57.95-44.9-71.65 | E4: 141.15-47.45 | F4: 158.2 | G4: 113.9 | H4: 186.5 | I4: 83.95 | N4: 68.8 | O4: 12.5 | AA4: 50.45 | AB4: 104.35 | AC4: 117.85 | AD4: 159.74 | AE4: 153.59 | AF4: 120.19
A5: 38 | B5: 125.2 | C5: 65.7 | D5: 67.6 | E5: 112.1 | F5: 81.8 | G5: 48.8 | H5: 121.7 | I5: 136.7 | J5: 114.8 | K5: 126.3 | L5: 96.8 | M5: 131.2 | N5: 141.6 | O5: 83.4-29.4 | P5: 103.2 | Q5: 43.5-20.7 | R5: 146.4 | S5: 109.2 | T5: 145.9 | U5: 118.9 | V5: 137.1 | W5: 111.7-20 | X5: 104.9 | Y5: 17.5-112.2 | Z5: 56.7 | AA5: 71.4 | AB5: 66.3 | AC5: 89.7 | AD5: 66.8 | AF5: 98.7
A6: 39 | B6: 156.5 | C6: 67-40.6 | D6: 61.5 | E6: 121.1 | F6: 49 | G6: 73.1 | H6: 127.3 | I6: 160.8 | J6: 140.9 | K6: 114.8 | M6: 114.5 | N6: 125.7 | O6: 62.9-85.2 | P6: 122.7 | Q6: 40.8-89.9 | R6: 123.3 | S6: 151.8 | T6: 128.1 | U6: 129.6 | V6: 152.2 | W6: 147 | X6: 55.3-57.5 | Y6: 121.4 | Z6: 69.9 | AA6: 136.7 | AB6: 72.7 | AC6: 129.3 | AD6: 123.7 | AE6: 107.9 | AF6: 133.4
A7: 40 | B7: 162.1 | C7: 99.7-54.2 | D7: 153.7 | E7: 169.1 | F7: 175.72 | G7: 95.4 | H7: 163.8 | I7: 184.7 | J7: 141.5 | K7: 153.5 | L7: 188.8 | M7: 184.8 | N7: 164.1 | O7: 9.9-131.9 | P7: 123.7 | Q7: 74-72.4 | R7: 157.5 | S7: 193.2 | T7: 114.3 | U7: 158.7 | V7: 195.2 | W7: 206.6 | X7: 47.2-111.5 | Y7: 201 | Z7: 217.7 | AA7: 187.9 | AB7: 94.6 | AC7: 18.4-205.2 | AD7: 167.8 | AE7: 181.3 | AF7: 168.2
A8: 41 | B8: 22.3-161.1 | C8: 79.7-133.8 | D8: 31.1-175.3 | E8: 202 | F8: 23.3-194.8 | G8: 108.6 | H8: 201.8 | I8: 224.6 | J8: 21.3-194.3 | K8: 184.6 | L8: 205.2 | M8: 217.2 | N8: 216.9 | O8: 194.8 | P8: 199 | Q8: 215.1 | R8: 189.1 | S8: 150.9-92.1 | T8: 222.7 | U8: 183.8 | V8: 213.1 | W8: 203.3 | X8: 189.4 | Y8: 178.2 | Z8: 216.5 | AA8: 196 | AB8: 173.7 | AC8: 138.5-83.3 | AD8: 202.8 | AE8: 185.4 | AF8: 197.1
A9: 42 | B9: 185.2 | C9: 60.2-136.3 | D9: 52.2-145.7 | E9: 211.9 | F9: 229.9 | G9: 184 | H9: 209.3 | I9: 172.9 | J9: 207.9 | K9: 224.3 | L9: 212 | M9: 235.1 | N9: 234.9 | O9: 220.5 | P9: 180.1 | Q9: 151.6 | R9: 200.3 | S9: 161.6-81.7 | T9: 209 | U9: 196.5 | V9: 197.2 | W9: 197.8 | X9: 188.2 | Y9: 184.9 | Z9: 224.6 | AA9: 221.7 | AB9: 120-56.9 | AC9: 211.8 | AD9: 195.5 | AE9: 185.7 | AF9: 192
A10: 43 | B10: 177 | C10: 175.4 | D10: 45 | E10: 192.6 | F10: 251.5 | G10: 157.6 | H10: 186.2 | I10: 126.4 | J10: 113.8 | K10: 226.1 | L10: 155 | M10: 207.6 | N10: 206.43 | O10: 85.4-159.8 | P10: 208.6 | Q10: 165.5 | R10: 177.8 | S10: 211.5 | T10: 135.8-66.2 | U10: 194.8 | V10: 201.8 | W10: 145.6 | X10: 198.6 | Y10: 172.4 | Z10: 61.1 | AA10: 162-23.7 | AB10: 104.6 | AC10: 177.8 | AD10: 61.3-93.9 | AE10: 157 | AF10: 138
A11: 44 | B11: 177.5 | C11: 149.1 | D11: 153.3 | E11: 178.8 | F11: 202.5 | G11: 190.5 | H11: 194.1 | I11: 176.9 | J11: 147 | K11: 165.7 | L11: 193.4 | M11: 193.9 | N11: 23.8-134.4 | O11: 218.1 | P11: 191.8 | Q11: 167.8 | R11: 118.2-44.2 | S11: 201.3 | T11: 172.1 | U11: 181.6 | V11: 176.83 | W11: 169.9 | X11: 177.5 | Y11: 179.9 | Z11: 178.9 | AA11: 166 | AB11: 152.6 | AC11: 180.7 | AD11: 118.2-73.2 | AE11: 166 | AF11: 144
A12: 45 | B12: 30-142.7 | C12: 168.5 | D12: 152.6 | E12: 147.8 | F12: 194.5 | G12: 147.7 | H12: 120.36 | I12: 176.4 | J12: 156.1 | K12: 176.1 | L12: 167.6 | M12: 177.2 | N12: 28.3-108.2 | O12: 200.2 | P12: 182.3 | Q12: 121.5-60.6 | R12: 207.7 | S12: 212.2 | T12: 151.7 | U12: 198.3 | V12: 190.2 | W12: 136.2 | X12: 155.5 | Y12: 175 | Z12: 197.7 | AA12: 135.4 | AB12: 160.3 | AC12: 181.4 | AD12: 91.6-62.5 | AE12: 25.5-184 | AF12: 153.1
A13: 46 | B13: 184.2 | C13: 189.1 | D13: 197.9 | E13: 187.1 | F13: 225.9 | G13: 169 | H13: 152.4 | I13: 182.7 | J13: 88.8-58.1 | K13: 148.4 | L13: 167.1 | M13: 167.2 | N13: 168.2 | O13: 162.2 | P13: 145.8 | Q13: 73-113 | R13: 164.2 | S13: 197.5 | T13: 144.6 | U13: 123.6-40.4 | V13: 176.2 | W13: 161 | X13: 169 | Y13: 155.4 | Z13: 174.9 | AA13: 136.5 | AB13: 108.2 | AC13: 150 | AD13: 126.7-43 | AE13: 136 | AF13: 189.4
A14: 47 | B14: 198.6 | C14: 194.3 | D14: 153.7 | E14: 195.6 | F14: 116 | G14: 174.9 | H14: 116.2-45.3 | I14: 189.2 | J14: 157.2 | K14: 155 | L14: 186.2 | M14: 172.3 | N14: 110.4-54.8 | O14: 184.5 | P14: 176.2 | Q14: 209.7 | R14: 175.7 | S14: 208.5 | T14: 148.5 | U14: 116.5-75.5 | V14: 178.3 | W14: 171.8 | X14: 184.9 | Y14: 144.5 | Z14: 187.9 | AA14: 137.2 | AB14: 118.2 | AC14: 167.4 | AD14: 158.3-61.5 | AE14: 141.2 | AF14: 161.7
A15: 48 | B15: 299.6 | C15: 234.05 | D15: 283.55 | E15: 353 | F15: 366.4 | G15: 144.2-98.25 | H15: 251.05 | I15: 256.4 | J15: 27-84.55 | K15: 173.4 | L15: 197.3 | M15: 213.8 | N15: 210.9 | O15: 229.6 | P15: 201 | Q15: 171.1 | R15: 58.7-128.3 | S15: 216.9 | T15: 85.6 | U15: 147.1 | V15: 198.9 | W15: 182.8 | X15: 226.2 | Y15: 185.2-26.1 | Z15: 249.1 | AA15: 214.7 | AB15: 205.4 | AC15: 262.8 | AD15: 123.9-92.3 | AE15: 196.06 | AF15: 202.2
A16: 49 | B16: 175.9 | C16: 74.2-55.6 | D16: 155.4 | E16: 202.7 | F16: 185.5 | G16: 176.8 | H16: 170.5 | I16: 174.31 | J16: 161.4 | K16: 160.37 | L16: 184.8 | M16: 42.1-108.3 | N16: 179.7 | O16: 157.4 | P16: 155.6 | Q16: 158.3 | R16: 43.9-107.21 | S16: 24.7-203 | T16: 166.8 | U16: 163.6 | V16: 90 | W16: 82 | X16: 229.1 | Y16: 150.8-42.1 | Z16: 250 | AA16: 228.7 | AB16: 150.3-84 | AC16: 218.3 | AD16: 196.2 | AE16: 191.7 | AF16: 182.7
A17: 50 | B17: 52.4-100.6 | C17: 48.3-119.4 | D17: 71.9-151.5 | E17: 225.7 | F17: 226.1 | G17: 184.1-22.5 | H17: 215.4 | I17: 163.2 | J17: 211.5 | K17: 197.8 | L17: 235.5 | M17: 163.6 | N17: 201.1 | O17: 192.9 | P17: 227.4 | Q17: 197.2 | R17: 155.9-21.6 | S17: 261.1 | T17: 180.1 | U17: 150.7 | V17: 197.2 | W17: 177.4 | X17: 216.71 | Y17: 184.9-29.6 | Z17: 233.3 | AA17: 218.35 | AB17: 214.5 | AC17: 128-80.5 | AD17: 177.5 | AE17: 229.4 | AF17: 199.1
A18: 51 | B18: 233.75 | C18: 255.85 | D18: 303.25 | E18: 270.15 | F18: 342.75 | G18: 297.03 | H18: 46.35-166.3 | I18: 264.25 | J18: 194 | K18: 106.8 | L18: 22.6-247.6 | M18: 265.85 | N18: 248.4 | O18: 216.5 | P18: 222.25 | Q18: 7.5-186.7 | R18: 164.2-29.5 | S18: 250.8 | T18: 146.3 | U18: 199.3 | V18: 272.8 | W18: 176.7 | X18: 24.3-180.5 | Y18: 217.91 | Z18: 75.4-8.1 | AA18: 189.5 | AB18: 219.6 | AC18: 223.4 | AD18: 208.4 | AE18: 199.3 | AF18: 236.2
A19: 52 | B19: 238 | C19: 243.7 | D19: 259.2 | E19: 230.7 | F19: 306.2 | G19: 230.5 | H19: 83.3-102.6 | I19: 176.3 | J19: 186.3 | K19: 189.3 | L19: 203.8 | M19: 164.2 | N19: 223 | O19: 190.33 | P19: 132.8-67.7 | Q19: 248.8 | R19: 16.4-159.2 | S19: 240.2 | T19: 185.8 | U19: 175.4 | V19: 208.2 | W19: 187.7 | X19: 9.8-202 | Y19: 182.6 | Z19: 187.8 | AA19: 170.3 | AB19: 171.2 | AC19: 189.8 | AD19: 74.2-78.9 | AE19: 188.2 | AF19: 186.8
A20: 53 | B20: 248.9 | C20: 288.7 | D20: 285.9 | E20: 205.7 | F20: 294.1 | G20: 203.5 | H20: 258.1 | I20: 188.3-115.4 | J20: 196.5 | K20: 289.9 | L20: 284.9 | M20: 245.3 | N20: 110.8-117.7 | O20: 214.5 | P20: 319.7 | Q20: 236.8 | R20: 121.4-131.7 | S20: 386.2 | T20: 409.2 | U20: 433.9 | V20: 367.05 | W20: 65.9-184.5 | X20: 267.8 | Y20: 241.2 | Z20: 213.5 | AA20: 127.1 | AB20: 218.5 | AC20: 290.4 | AD20: 247.2 | AE20: 139.4-75 | AF20: 265.2
A21: 54 | B21: 274.15-72.4 | C21: 310.65 | D21: 329.45 | E21: 315.75 | F21: 69.3 | G21: 180.5 | H21: 198.4 | I21: 165.6 | J21: 76.3-138.6 | K21: 169.9 | L21: 242.5 | M21: 235.8 | N21: 89.9-89.5 | O21: 153.3 | P21: 220.5 | Q21: 51 | R21: 34.8-117.65 | S21: 358.05 | T21: 366.13 | U21: 281.6 | V21: 319.15 | W21: 311.3 | X21: 278.5 | Y21: 175.5-2.85 | Z21: 207.9 | AA21: 188.8 | AB21: 116.6 | AC21: 142.5 | AD21: 144.8 | AE21: 202.5 | AF21: 29.2-164.8
A22: 55 | B22: 173.4 | C22: 183.7 | D22: 188.1 | E22: 180.5 | F22: 208.01 | G22: 182.2 | H22: 205.9 | I22: 114.8-40.2 | J22: 189.9 | K22: 187.6 | L22: 205.6 | M22: 189.4 | N22: 184.7 | O22: 72.8-104.8 | P22: 185.3 | Q22: 143.5 | R22: 19.6-176.6 | S22: 132.6-110.39 | T22: 345.55 | U22: 314.05 | V22: 312.3 | W22: 27.2-134.1 | X22: 161.1 | Y22: 175.5 | Z22: 34.7-176.8-25.2 | AA22: 173.9 | AB22: 94.4 | AC22: 152.3 | AD22: 167.3 | AE22: 106.7-76.5 | AF22: 161.4
A23: 56 | B23: 204.5 | C23: 147.1 | D23: 198.3 | E23: 226.1 | F23: 248.7 | G23: 199.9 | H23: 259.4 | I23: 193.4 | J23: 56.5-164.6 | K23: 210.5 | L23: 273.5 | M23: 207.5 | N23: 179.2-100.5 | O23: 204.8 | P23: 256.4 | Q23: 167.2-95.7 | R23: 199.4 | S23: 251.1 | T23: 227.3 | U23: 264.8 | V23: 254.5 | W23: 227.52 | X23: 137-69 | Y23: 247.9 | Z23: 178.4 | AA23: 108.9 | AB23: 140.3 | AC23: 182.8 | AD23: 209.25 | AE23: 69.7-96.5 | AF23: 183.2
A24: 57 | B24: 207.3 | C24: 175.7 | D24: 196.5 | E24: 222.8 | F24: 248.6 | G24: 202.2 | H24: 243.6 | I24: 111.7-88 | J24: 242.1 | K24: 213.16 | L24: 242.9 | M24: 202.6 | N24: 247.8 | O24: 33-195.8 | P24: 242.9 | Q24: 262.9 | R24: 203.5 | S24: 154.9-126 | T24: 148-79.8 | U24: 206.9 | V24: 272.8 | W24: 201.7 | X24: 230.9 | Y24: 205.7-27 | Z24: 208.2 | AA24: 115.5 | AB24: 113.4 | AC24: 181.1 | AD24: 208 | AE24: 199.2 | AF24: 194.2
A25: 58 | B25: 49.05 | C25: 65.9 | W25: 27.6 | X25: 108.9 | Y25: 135.95 | Z25: 77.35-50.25 | AA25: 193.25 | AB25: 189.37 | AC25: 162.35 | AD25: 134.23 | AE25: 140.95 | AF25: 156.95
A26: 59 | W26: 22.9
A27: 60 | B27: 42.95 | C27: 67.8 | W27: 57.6 | X27: 148.6 | Y27: 171.9 | Z27: 179.4 | AA27: 195.4 | AB27: 186.75 | AC27: 170.3 | AD27: 189 | AE27: 159.18 | AF27: 155.1
A28: 61 | B28: 34.95 | C28: 93.55 | W28: 51 | X28: 113.7 | Y28: 157.65 | Z28: 208.9 | AA28: 166.4 | AB28: 138.6 | AC28: 173 | AD28: 167.7 | AE28: 113.65 | AF28: 129.85
A29: 62 | B29: 65.35 | C29: 90.45 | W29: 32.75-19.4 | X29: 131.5 | Y29: 143.65 | Z29: 120.7 | AA29: 135.25 | AB29: 136.4 | AC29: 126.6 | AD29: 165.05 | AE29: 142.5 | AF29: 154.3
A30: 65 | X30: 9.5 | Y30: 191.45 | Z30: 19.95-111.05 | AA30: 84.6 | AB30: 131.85 | AC30: 141.3 | AD30: 134.3 | AE30: 40.95 | AF30: 65.35
A31: 67 | B31: 223.85 | C31: 222.3 | D31: 140.9 | W31: 60.35 | X31: 207.65 | Y31: 211.65 | Z31: 240.6 | AA31: 252.8 | AB31: 197.85 | AC31: 240.45 | AD31: 183.75 | AE31: 194.05 | AF31: 198.85
A32: 68 | B32: 206.8 | C32: 212.3 | D32: 168.7 | W32: 59.2 | X32: 21.5-156.25 | Y32: 184.2 | Z32: 222.9 | AA32: 241.2 | AB32: 231.55 | AC32: 132.95 | AD32: 174.45 | AE32: 97.45 | AF32: 89.85
A33: 69 | B33: 72.25 | W33: 33.85 | X33: 153.4 | Y33: 110.5 | Z33: 211.4 | AA33: 188.15 | AB33: 161.03 | AC33: 167.2 | AD33: 138.35 | AE33: 119.95 | AF33: 84.7
A34: 74 | Z34: 25.5
A35: 80 | B35: 99.85-159.95 | C35: 340.8 | D35: 286.6 | E35: 331.3 | F35: 360.44 | G35: 72.95 | W35: 124.45 | X35: 332.85 | Y35: 110.3-215.1 | Z35: 221.1 | AA35: 255.6 | AB35: 196.63 | AC35: 239.1 | AD35: 127.75-79.65 | AE35: 297 | AF35: 264.87
A36: 81 | B36: 25.7-299.75 | C36: 346.8 | D36: 331.95 | E36: 318.95 | F36: 305.25 | G36: 109.6 | W36: 168.8 | X36: 268.7 | Y36: 64.8-164.7 | Z36: 258.8 | AA36: 247.35 | AB36: 245.75 | AC36: 236 | AD36: 124.15-84.2 | AE36: 313.1 | AF36: 250.15
A37: 82 | B37: 118.4-163.3 | C37: 284.45 | D37: 280.15 | E37: 284.1 | F37: 315.25 | G37: 99.4 | W37: 123.1 | X37: 311.25 | Y37: 79.55-118.3 | Z37: 224.15 | AA37: 209.2 | AB37: 26.3-196.25 | AC37: 190.85 | AD37: 165.65-23.8 | AE37: 170.75 | AF37: 150.5-23.1
A38: 83 | B38: 50.55-294.8 | C38: 291.95 | D38: 404.15 | E38: 329.6 | F38: 383 | G38: 88.25 | W38: 147.05 | X38: 47.75 | Y38: 86.75-109.45 | Z38: 267.45 | AA38: 267.5 | AB38: 252.45 | AC38: 127.35-125.2 | AD38: 291.1 | AE38: 307.16 | AF38: 291.15
A39: 84 | B39: 95.35-258.8 | C39: 237.1-74 | D39: 249.9-158.75 | E39: 132.45-201.05 | F39: 347.3 | G39: 91.05 | W39: 200.85 | X39: 408.95 | Y39: 73.05-212.2 | Z39: 244.45 | AA39: 272.55 | AB39: 262.8 | AC39: 135.1-186.95 | AD39: 266 | AE39: 305.15 | AF39: 295.65
A40: 85 | B40: 49.85-271.65-17.5 | C40: 340.9 | D40: 335 | E40: 341.1 | F40: 229.95 | G40: 26.05-128.85 | W40: 139.75 | X40: 369.6 | Y40: 362.3 | Z40: 400.25 | AA40: 380.7 | AB40: 333.72 | AC40: 381.75 | AD40: 384.69 | AE40: 345.65 | AF40: 299.05
A41: 86 | B41: 11.75-362.45 | C41: 344.65 | D41: 338.95 | E41: 306.35 | F41: 311 | G41: 111.3 | W41: 142.9 | X41: 385.75-29.65 | Y41: 328.05 | Z41: 376.5 | AA41: 359.8 | AB41: 341.65 | AC41: 372.55 | AD41: 331.05 | AE41: 334.75-16.55 | AF41: 269.25
A42: 87 | B42: 25.74-320.15 | C42: 343.85 | D42: 345.2 | E42: 317.65 | F42: 402.5 | G42: 61.9 | W42: 168.56 | X42: 362.5 | Y42: 333.15 | Z42: 353.05 | AA42: 367.65 | AB42: 284.15 | AC42: 370.9 | AD42: 281.2 | AE42: 180.1-105.6 | AF42: 268.25
A43: 88 | B43: 59.75-280.05 | C43: 327.05 | D43: 340.1 | E43: 334.9 | F43: 375.99 | G43: 92.25 | W43: 186.9 | X43: 367.85 | Y43: 337.25 | Z43: 440.3 | AA43: 381.55 | AB43: 316.82 | AC43: 401.45 | AD43: 389.45 | AE43: 237.7-88.3 | AF43: 343.65
A44: 89 | B44: 59.25-248.85 | C44: 312.75 | D44: 408.85 | E44: 333.25 | F44: 377.46 | G44: 91.45 | W44: 127.6 | X44: 404.5 | Y44: 399.98 | Z44: 401.35 | AA44: 423.75 | AB44: 407.15 | AC44: 25.8-380.35 | AD44: 162.1-205.5 | AE44: 92.4-264.25 | AF44: 297.35
A45: 90 | D45: 23.5 | E45: 71.8 | F45: 31.5 | Q45: 39.7 | R45: 11
A46: 116 | B46: 137.2 | C46: 111.65 | D46: 147.35 | E46: 5.9-119.5 | F46: 158.5 | G46: 138.05 | H46: 125.5 | I46: 131.9 | J46: 134.35 | K46: 137.8 | L46: 77.4-80.15 | M46: 144 | N46: 144.95 | O46: 144.5 | P46: 147.45 | Q46: 111.5 | R46: 108.6 | S46: 41.35-78.1 | T46: 137.14 | U46: 86.3 | V46: 114.65 | W46: 128.7 | X46: 114.55 | Y46: 112.8 | Z46: 100.55 | AA46: 38-36.25 | AB46: 66.55 | AC46: 113.5 | AD46: 117.4-11-18.7 | AE46: 99.75 | AF46: 125.95
A47: 210 | B47: 115.7 | C47: 69.25 | D47: 134.8 | E47: 96.58 | F47: 140.05 | G47: 140.75 | H47: 134.1 | I47: 116 | J47: 126.15 | K47: 133.1 | L47: 130.05 | M47: 145.9 | N47: 143.25 | O47: 143.1 | P47: 114.35 | Q47: 150.1 | R47: 126.65 | S47: 157.45 | T47: 134.3 | U47: 115.9 | V47: 133.85 | W47: 133.3 | X47: 77.9 | Y47: 121.7 | Z47: 70.2 | AA47: 69.6 | AB47: 74.05 | AC47: 65.15 | AD47: 130 | AE47: 68.85 | AF47: 140.1
A48: 211 | B48: 81.25 | C48: 71.25 | D48: 141.55 | E48: 77.3 | F48: 113.95 | G48: 114.1 | H48: 143 | I48: 119.95 | J48: 150.3 | K48: 123.05 | L48: 146.3 | M48: 107.4 | N48: 26.4-116.05 | O48: 145.95 | P48: 103.5 | Q48: 147.95 | R48: 128.1 | S48: 97.5 | T48: 158.25 | U48: 136.55 | V48: 132.75 | W48: 99.55 | X48: 67.4 | Y48: 74.45 | Z48: 97.05 | AA48: 76.5 | AB48: 72.95 | AC48: 124.34 | AD48: 141.6 | AE48: 55.6 | AF48: 137.1
A49: 212 | B49: 127.85 | C49: 62.8 | D49: 119.56 | E49: 68.55 | F49: 105.55 | G49: 81.95 | H49: 127.55 | I49: 107.8 | J49: 67.45-54.8 | K49: 162.35 | L49: 154.2 | M49: 148.25 | N49: 151.2 | O49: 141.75 | P49: 131.6 | Q49: 137.35 | R49: 29-22.15 | AA49: 22.15 | AB49: 72.85 | AC49: 66.55 | AD49: 48.95 | AE49: 72.75 | AF49: 118.75
A50: 213 | B50: 93.3 | C50: 65.2 | D50: 126.4 | E50: 43.65 | F50: 90.55 | G50: 58.15 | H50: 101.8 | I50: 114.45 | J50: 157.3 | K50: 107.5 | L50: 150.95 | M50: 141.45 | N50: 139.8 | O50: 141.35-21.4 | P50: 133.6 | Q50: 134.5 | R50: 5.3-26 | Y50: 50.9 | Z50: 53 | AA50: 76.95 | AB50: 71.6 | AC50: 63.05 | AD50: 88.85 | AE50: 68 | AF50: 101.4
A51: 214 | B51: 64.2 | C51: 55.55 | D51: 54.55 | E51: 17.35-38.33 | F51: 130.25 | G51: 58.55 | H51: 99.1 | I51: 102.6 | J51: 121.95 | K51: 115.6 | L51: 120.35 | M51: 52.9-60.05 | N51: 144.75 | O51: 86.95 | P51: 66.1-47.2 | Q51: 116.55 | R51: 120.6 | S51: 88.4 | T51: 53.95 | U51: 102.95 | V51: 117.85 | W51: 117.35 | X51: 51.65 | Y51: 11.5-50.95 | Z51: 60.55 | AA51: 57.9 | AB51: 57.4 | AC51: 44.6 | AD51: 29.4 | AE51: 50.4 | AF51: 74.9-23.7
A52: 215 | B52: 143.2 | C52: 73.15 | D52: 19.5-22.15 | E52: 69.8 | F52: 84.2 | G52: 101.35 | H52: 164.9 | I52: 132.7 | J52: 175.35 | K52: 159.05 | L52: 157.4 | M52: 100.8-73.25 | N52: 181.65 | O52: 16-148.15 | P52: 85.25-68.1 | Q52: 136.75 | R52: 171.4 | S52: 141.15 | T52: 131.95 | U52: 143.6 | V52: 155.65 | W52: 162.35 | X52: 75.4 | Y52: 70.15 | Z52: 85.8 | AA52: 83.4 | AB52: 77.75 | AC52: 69.7 | AE52: 81-15.9 | AF52: 138.25
A53: 216 | B53: 81.5 | C53: 35.45 | D53: 12.45 | E53: 63.6 | F53: 56.1 | G53: 69.2 | H53: 77.1 | I53: 111.7 | J53: 106.65 | K53: 136.35 | L53: 101.5 | M53: 129.9 | N53: 102.8 | O53: 66.7 | P53: 21.05 | Q53: 79.8 | R53: 116.85 | S53: 115.7 | T53: 40.2 | U53: 31.95 | V53: 33.85 | W53: 13.85-102.05-18.25 | X53: 71.1 | Y53: 9.9-51 | Z53: 59.15 | AA53: 73.6 | AB53: 68.45 | AC53: 74.35 | AD53: 122.35 | AE53: 111.7 | AF53: 115.55
A54: 217 | B54: 54.3 | C54: 163.75 | D54: 128 | E54: 79.95 | F54: 127.5 | G54: 144.6 | H54: 148.95 | I54: 141.55 | J54: 110.35 | K54: 143.6 | L54: 127.2-13 | M54: 148.7 | N54: 161.1 | O54: 152.2 | P54: 161.4 | Q54: 140.1 | R54: 124.62 | S54: 70.1 | T54: 198.3 | U54: 135.85 | V54: 163.45 | W54: 122.6 | X54: 7.6 | AB54: 54.3 | AC54: 52.7 | AD54: 53.25 | AE54: 103.3 | AF54: 103.55
A55: 218 | B55: 136.1 | C55: 86.85 | F55: 11.55 | G55: 152.15 | H55: 162.55 | I55: 130.4 | J55: 145.95 | K55: 151.25 | L55: 109.8-37.1 | M55: 146.2 | N55: 139.4 | O55: 144.4 | P55: 155.55 | Q55: 150.35 | R55: 154.95 | S55: 147.15 | T55: 136.59 | U55: 135.3 | V55: 150.05 | W55: 111.8 | X55: 46.65 | Y55: 28 | Z55: 23 | AA55: 45.4 | AB55: 50.8 | AC55: 65.35 | AD55: 118.35 | AE55: 131.4 | AF55: 134.4
A56: 219 | B56: 44.1 | C56: 52.3 | D56: 30.8 | E56: 66.5 | F56: 54.9 | G56: 70.85 | H56: 76.5 | I56: 54.05 | J56: 46.55 | K56: 15 | L56: 113.05 | M56: 104.85 | N56: 118.25 | O56: 46.7 | P56: 95.3 | Q56: 91.4 | R56: 103.4 | S56: 91.1-14.45 | T56: 45 | U56: 101.25 | V56: 108.95 | W56: 87.95 | X56: 67.2 | AA56: 47.05 | AB56: 47.95 | AC56: 47.4 | AD56: 86.65 | AE56: 49.9 | AF56: 105.35
A57: 220 | Y57: 15.2 | Z57: 35.35
A58: 221 | B58: 107.5 | C58: 69.15 | D58: 23.6-49.9 | E58: 57.05 | F58: 69.39 | G58: 120.75 | H58: 139.35 | I58: 145.8 | J58: 147.05 | K58: 148 | L58: 141.35 | M58: 65.4-71.25 | N58: 169.9 | O58: 172.1 | P58: 131.85 | Q58: 114.4 | R58: 109.2 | S58: 132.6 | T58: 75.05 | U58: 144.05 | V58: 138.35 | W58: 151.15 | X58: 70.75 | Y58: 71.3 | Z58: 33.85 | AA58: 84.7 | AB58: 81.35 | AC58: 68.3 | AE58: 60.1 | AF58: 34.6-59
A59: 225 | G59: 60.65 | H59: 102.3 | I59: 142.2 | J59: 119.5 | K59: 129.75 | L59: 125.9 | M59: 29.15-111.3 | N59: 120.95 | O59: 110.1 | P59: 100.4 | Q59: 98.29 | R59: 61.4 | AB59: 41.6 | AC59: 55.65 | AE59: 43 | AF59: 97.9
A60: 228 | B60: 257.7 | C60: 221.4 | D60: 199.35 | E60: 212.35 | F60: 195.8-65.05 | G60: 179.05 | H60: 228.3 | I60: 192.65 | J60: 193.5 | K60: 227.2 | L60: 207 | M60: 206.7 | N60: 251.6 | O60: 196.9 | P60: 168.3 | Q60: 205.75 | R60: 198.3 | S60: 245.15 | T60: 109.9
A61: 229 | B61: 98.9 | C61: 231.85 | D61: 77.2 | E61: 276.05 | F61: 283.3 | G61: 126.2-113.55 | H61: 246.7 | I61: 85.45 | J61: 191.05 | K61: 247.4 | L61: 244.05 | M61: 216.3 | N61: 252.2 | O61: 291.2 | P61: 236.2 | Q61: 225.65 | R61: 254 | S61: 255.1 | T61: 106.2
A62: 231 | J62: 114.2 | K62: 112.45 | L62: 135.4 | M62: 175.25 | N62: 144.85 | O62: 124.35 | P62: 131.1 | Q62: 144.05 | R62: 109.55 | S62: 80.54 | T62: 56.3
A63: 232 | B63: 110.1 | C63: 226.45 | D63: 71.4 | E63: 299.85 | F63: 317.7 | G63: 131.35-148.4 | H63: 260.15 | I63: 180.3 | J63: 246.65 | K63: 224.2 | L63: 246.85 | M63: 175.65 | N63: 279.25 | O63: 247.25 | P63: 247.85 | Q63: 259.3 | R63: 223.5 | S63: 127.15 | T63: 119.05
A64: 234 | G64: 58.55 | H64: 106.3 | I64: 10.7 | J64: 11.35-52.2 | K64: 180.85 | L64: 150.45 | M64: 125.8 | N64: 16.8 | O64: 49.4 | P64: 62.85 | Q64: 79.35
A65: 301 | B65: 113.95 | C65: 120.8 | D65: 51 | E65: 42.9-28.5 | F65: 36.5
A66: 302 | B66: 42 | C66: 37.45 | D66: 29.4 | E66: 36.7 | F66: 60.7 | G66: 37.5 | H66: 39.5 | I66: 40.1 | J66: 20.5-18.4 | K66: 38.4 | L66: 35.7 | M66: 41.8 | N66: 67.3 | O66: 34.7 | P66: 19.3 | Q66: 70.8 | R66: 80.4 | S66: 42.3 | T66: 11.1-33.5 | U66: 47.2 | V66: 37 | W66: 29.5 | X66: 21 | Y66: 40.8 | Z66: 42.5 | AA66: 14.5-22.1 | AB66: 39.2 | AC66: 30.4 | AD66: 35.5 | AE66: 28.2 | AF66: 27.8
A67: 303 | B67: 98.2 | C67: 123.75 | D67: 89.05 | E67: 46.85-67.8
A68: 304 | B68: 132.05 | C68: 127.9 | D68: 145 | E68: 44.9-127.3
A69: 307 | B69: 113.6 | C69: 86.2 | D69: 113.7 | N69: 22.35 | O69: 39.35 | P69: 59.3 | Q69: 51 | R69: 49.5 | S69: 99.35 | T69: 5.15 | AB69: 40.15 | AF69: 12
A70: 314 | B70: 126.55-25.7 | C70: 90.45-15.5 | D70: 131.8 | E70: 103.65 | F70: 111.45 | G70: 141.44 | H70: 90.15 | I70: 78.2-49.75 | J70: 100.8 | K70: 103.25-22.55 | L70: 132.5 | M70: 97.25 | N70: 139.2 | O70: 102.6 | P70: 20-82.75 | Q70: 90.85 | R70: 104.1 | S70: 124.7 | T70: 104.85 | U70: 95.6 | V70: 57.5 | AF70: 6.95
A71: 410 | B71: 109.5-106.3 | C71: 172.4 | D71: 192.1 | E71: 235.5 | F71: 207.6 | G71: 217.85 | H71: 199 | I71: 246.2 | J71: 120.6-68.7 | K71: 185.4 | L71: 235.1 | M71: 205.3 | N71: 205.4 | O71: 204 | P71: 259.2 | Q71: 212.53 | R71: 199.9 | S71: 267.46 | T71: 225.6 | U71: 197.2 | V71: 227.6 | W71: 67.3-84.5 | X71: 153.7-22.8 | Y71: 138.5 | Z71: 27.9-113.7 | AA71: 210.2 | AB71: 208.5 | AC71: 221 | AD71: 194.4 | AE71: 216 | AF71: 132.7-51.7
A72: 411 | B72: 186.1 | C72: 141.4-84.6 | D72: 180.38 | E72: 276.8 | F72: 203.9 | G72: 207.9 | H72: 212.7 | I72: 207.2 | J72: 198.5 | K72: 58.1-137 | L72: 231.5 | M72: 206.4 | N72: 236.2 | O72: 198.6 | P72: 285.1 | Q72: 153-69.9 | R72: 212.9 | S72: 249.6 | T72: 213.4 | U72: 231.5 | V72: 210.5 | W72: 230.5 | X72: 135-63.5 | Y72: 199.1 | Z72: 216.5 | AA72: 229.6 | AB72: 211.2 | AC72: 198.9 | AD72: 213.2 | AE72: 179.5 | AF72: 167.5-48.3
A73: 412 | B73: 239.25 | C73: 220.99 | D73: 253.25 | E73: 338.1 | F73: 14.35-83.75-153.1 | G73: 275.3 | H73: 25.85-213.7 | I73: 153.05-77.95 | J73: 277.35 | K73: 246.3 | L73: 225.2 | M73: 267.45 | N73: 213.15 | O73: 76.5-169.55 | P73: 253.3 | Q73: 242.6 | R73: 197.1 | S73: 283 | T73: 91.9-83.8 | U73: 225 | V73: 245.1 | W73: 196.9 | X73: 216.7 | Y73: 152.9-83.5 | Z73: 190.8 | AA73: 243.2 | AB73: 236.1 | AC73: 191.8 | AD73: 208.1 | AE73: 233.9 | AF73: 201
A74: 413 | B74: 305.4 | C74: 274.2 | D74: 305.9 | E74: 315.7 | F74: 32.75-61.55-215.25 | G74: 216.25 | H74: 280.55 | I74: 160.9-25.5 | J74: 149.6 | K74: 158.5 | L74: 220.7 | M74: 209.2 | N74: 149.7-86 | O74: 170.4 | P74: 259.8 | Q74: 216.9 | R74: 191.6 | S74: 229.4 | T74: 235.2 | U74: 250 | V74: 208.4 | W74: 58.9-134.7 | X74: 199.7 | Y74: 204.2 | Z74: 217.4 | AA74: 120.7-80.4 | AB74: 211.3 | AC74: 174.6 | AD74: 201.2 | AE74: 226.1 | AF74: 166.63
A75: 414 | B75: 225.6 | C75: 219.2 | D75: 169.1 | E75: 223.3 | F75: 270.2 | G75: 125.8 | H75: 260.7 | I75: 275.3 | J75: 244.5 | K75: 299.4 | L75: 279.1 | M75: 272.7 | N75: 279.5 | O75: 292.4 | P75: 255 | Q75: 30.7-210.7 | R75: 231.3 | S75: 264.1 | T75: 230.1 | U75: 159.3-78.5 | V75: 250.8 | W75: 241.9 | X75: 136.8-124.1 | Y75: 242.3 | Z75: 263.8 | AA75: 278.1 | AB75: 250.5 | AC75: 252.9 | AD75: 214.7 | AE75: 157.7-74.5 | AF75: 209.1
A76: 415 | B76: 220.5 | C76: 209.1 | D76: 214.8 | E76: 218 | F76: 224.2 | G76: 127.1 | H76: 293.5 | I76: 269 | J76: 45.2-205.6 | K76: 274.8 | L76: 298.2 | M76: 271.1-21.8 | N76: 257.23 | O76: 256.9 | P76: 239 | Q76: 313.6 | R76: 218.8 | S76: 331.5 | T76: 265.8 | U76: 273.3 | V76: 28.7-250.1 | W76: 277.1 | X76: 197 | Y76: 280.7 | Z76: 256.7 | AA76: 283.9 | AB76: 267.2 | AC76: 237.4 | AD76: 253.9 | AE76: 149.1-63.8 | AF76: 178.6
A77: 500 | B77: 23.75-174.8 | C77: 171.85 | D77: 136.7-37.2 | E77: 200.2 | F77: 217.05 | G77: 16.65-88.85 | H77: 209.4 | I77: 179.9 | J77: 154-40.7 | K77: 100.9 | L77: 145.2 | M77: 206.6 | N77: 99.1-80.4 | O77: 111-93.15 | P77: 175.15-29 | Q77: 234.45 | R77: 228.75 | S77: 195.9 | T77: 48-97.5 | U77: 187.45 | V77: 188.45 | W77: 195.25 | X77: 163.28 | Y77: 171.85 | Z77: 22.2-201.85 | AA77: 189.75 | AB77: 173.2 | AC77: 159.35 | AD77: 156.6 | AE77: 157.7 | AF77: 77.55-99.1
A78: 501 | B78: 206.4 | C78: 100.75 | D78: 181 | E78: 209.56 | F78: 211.35 | G78: 114 | H78: 189.65 | I78: 44.7-73.85 | J78: 121.02 | K78: 120.15 | L78: 167.1 | M78: 204.25 | N78: 182.15 | O78: 228.6 | P78: 152.75 | Q78: 181.9 | R78: 126.5-78.5 | S78: 177 | T78: 17.3-75.4 | U78: 182.55 | V78: 193.05 | W78: 181.7 | X78: 160.5 | Y78: 173.2 | Z78: 196.25 | AA78: 187.75 | AB78: 166.3 | AC78: 168 | AD78: 170.3 | AE78: 154.4 | AF78: 27-135.15
A79: 502 | B79: 235.7 | C79: 206.45 | D79: 194.15 | E79: 233.75 | F79: 218.55 | G79: 26-102.6 | H79: 250.35 | I79: 199.95 | J79: 194.35 | K79: 120 | L79: 138.5 | M79: 252.6 | N79: 211.35 | O79: 124.65-72.6 | P79: 20.5-209.1 | Q79: 182.3 | R79: 86.2-136.9 | S79: 230.5 | T79: 214.1 | U79: 175.3 | V79: 213.5 | W79: 183.3 | X79: 211.48 | Y79: 191 | Z79: 182.4 | AA79: 174.15-39.8 | AB79: 161.1 | AC79: 198.9 | AD79: 197.8 | AE79: 193.55 | AF79: 71.25-129.2
A80: 503 | B80: 231.05 | C80: 196.35 | D80: 191.05 | E80: 211.05 | F80: 215.6 | G80: 101.04 | H80: 142.7-100.15 | I80: 194.65 | J80: 211.65 | K80: 109.9 | L80: 19.1-53.9 | M80: 233.71 | N80: 181.4 | O80: 204.9 | P80: 214.8 | Q80: 176.1-20.4 | R80: 259.6 | S80: 232.5 | T80: 191.3 | U80: 221.9 | V80: 220.6 | W80: 217.3 | X80: 204.7 | Y80: 176.9 | Z80: 173 | AA80: 148.3-63.6 | AB80: 170.7 | AC80: 236.4 | AD80: 182.5 | AE80: 74.6-102.7 | AF80: 76.75-162.3
A81: 504 | B81: 269.4 | C81: 295.1 | D81: 253 | E81: 133.7-118.8 | F81: 235.85 | G81: 199.35 | H81: 23-81.65 | I81: 189.2 | J81: 97.55-129.1 | K81: 270.25 | L81: 141.2 | P81: 102.8 | Q81: 234.35 | R81: 196.5 | S81: 63.3-141 | T81: 208.45 | U81: 221.95 | V81: 192.65 | W81: 198.5 | X81: 180.95 | Y81: 180.95 | Z81: 176.9 | AA81: 24 | AC81: 23.8 | AD81: 248.8 | AE81: 241.95 | AF81: 242.55
A82: 505 | B82: 272.5 | C82: 241.8 | D82: 221.45 | E82: 209.65 | F82: 277.4 | G82: 113.7 | H82: 31.95 | M82: 59.8 | N82: 239.35 | O82: 213.75 | P82: 250 | Q82: 218.35 | R82: 206.95 | S82: 218.65 | T82: 202.85 | U82: 217.5 | V82: 225.95 | W82: 217.25 | X82: 236.15 | Y82: 170.5 | Z82: 159.6 | AA82: 209.75 | AB82: 142.75 | AC82: 183.8 | AD82: 25.2-118.79-24.9 | AE82: 251.45 | AF82: 235
A83: 506 | B83: 268.7 | C83: 262.35 | D83: 204.8 | E83: 238.55 | F83: 139-96.45 | G83: 192.7 | H83: 88.7-73.2 | I83: 168.6 | J83: 96.45-118.55 | K83: 272.5 | L83: 132.9 | O83: 75.3 | P83: 219.75 | Q83: 233.3 | R83: 223.5 | S83: 224.8 | T83: 237.75 | U83: 228.85 | V83: 206.15 | W83: 211.25 | X83: 236.35 | Y83: 207.5 | Z83: 247.51 | AA83: 117.7 | AC83: 28.7 | AD83: 276.55 | AE83: 267.85 | AF83: 229.15
A84: 507 | B84: 269.75 | C84: 202.95 | D84: 48.75-103.2 | E84: 154 | F84: 200.75 | G84: 196.75 | H84: 128.45-23.25 | I84: 176.55 | J84: 207 | K84: 225.8 | L84: 196.95 | M84: 157.4 | R84: 29.5 | S84: 227.4 | T84: 251.5 | U84: 292.1 | V84: 273.6 | W84: 233.8 | X84: 208.05 | Y84: 208.15 | Z84: 294.8 | AA84: 264.05 | AB84: 235.1 | AC84: 290.3 | AD84: 65.4-182.25 | AE84: 244.15 | AF84: 226.65
A85: 508 | B85: 197.1 | C85: 240.4 | D85: 238.25 | E85: 216.2 | F85: 191.9 | G85: 207.15 | H85: 80.65 | I85: 163.15 | J85: 215.25 | K85: 179.95 | L85: 217.9 | M85: 112.95 | R85: 31.55 | S85: 246.2 | T85: 261.65 | U85: 295.25 | V85: 266.55 | W85: 257.9 | X85: 180.7 | Y85: 255.05 | Z85: 220.3 | AA85: 281.6 | AB85: 261.05 | AC85: 271.75 | AD85: 250.05 | AE85: 25.4-131-93.6 | AF85: 238.1
A86: 509 | B86: 221.25 | C86: 134.55-50.05 | D86: 199.8 | E86: 188.05 | F86: 196.65 | G86: 189.7 | H86: 150.3 | I86: 81.25-92.8 | J86: 225.3 | K86: 48.9-66.15 | L86: 192.7-16.15 | M86: 73.7 | R86: 70.45 | S86: 241.4 | T86: 277.3 | U86: 266.84 | V86: 265.7 | W86: 237.8 | X86: 240.55 | Y86: 248.35 | Z86: 263.75 | AA86: 295.1 | AB86: 235.55 | AC86: 48.15-226.4 | AD86: 228.45 | AE86: 228.2 | AF86: 222.15
A87: 510 | B87: 226 | C87: 125.9-44.55 | D87: 161.6 | E87: 202.15 | F87: 190.15 | G87: 119.4 | H87: 179.95 | I87: 54.1-97.35 | J87: 152.5 | K87: 149.6 | L87: 182.35 | M87: 77.75-25.5 | N87: 223.95 | O87: 163.4 | P87: 114.6 | R87: 68.85 | S87: 297.75 | T87: 245.75 | U87: 239.7 | V87: 256.15 | W87: 191.7 | X87: 242.65 | Y87: 232.95 | Z87: 248.8 | AA87: 273.35 | AB87: 243.4 | AC87: 48.45-180.55 | AD87: 220.85 | AE87: 300 | AF87: 202.85
A88: 511 | B88: 273.19 | C88: 167.55-48.75 | D88: 183.55 | E88: 206.37 | F88: 17.4-178.45-24.1 | G88: 14.4-172.85 | H88: 156.15 | I88: 71.6-96.92 | J88: 213.1 | K88: 164.5 | L88: 226.3 | M88: 173.45-40.8 | N88: 202.35 | O88: 215.5 | P88: 70.5 | R88: 43.15 | S88: 257.9 | T88: 239.13 | U88: 214.3 | V88: 226.4 | W88: 219.5 | X88: 261.55 | Y88: 265.65 | Z88: 254.6 | AA88: 272.95 | AB88: 245.8 | AC88: 44-26.15-189.8 | AD88: 228.65 | AE88: 215.8 | AF88: 187.05
A89: 512 | B89: 258.7 | C89: 169.55-47.7 | D89: 186.9 | E89: 195.4 | F89: 23.75-178.65 | G89: 166.75 | H89: 151.15 | I89: 195.2 | J89: 200.8 | K89: 5.8 | R89: 41.15 | S89: 289.9 | T89: 269.6 | U89: 241.85 | V89: 257.2 | W89: 231 | X89: 267.85 | Y89: 265.15 | Z89: 244.3 | AA89: 267.9 | AB89: 213.95 | AC89: 43.8-205.15 | AD89: 228.9 | AE89: 225.85 | AF89: 214.35
A90: 513 | B90: 224.8 | C90: 261.25 | D90: 259.8 | E90: 214.6-27 | F90: 218.95 | G90: 149 | H90: 164.2-22.5 | I90: 203.65 | J90: 220.25 | K90: 221.75 | L90: 198.7 | M90: 185.2 | N90: 177.6 | O90: 187.25 | P90: 116.65 | R90: 70.7 | S90: 287.8 | T90: 275.5 | U90: 204.4 | V90: 236.45 | W90: 226.1 | X90: 296.1 | Y90: 238.9 | Z90: 277.2 | AA90: 265.73 | AB90: 245.5 | AC90: 54.9-202.35 | AD90: 282.8 | AE90: 281.55 | AF90: 250.1
A91: 532 | AB91: 30.4
